bitfinex-derivatives/quotes_ETHF0:USTF0_20240924
["timestamp","ask_amount","ask_price","bid_price","bid_amount"]
[1727143850558,0.38138,2622.2,2621.9,0.3955]
[1727143850757,0.38138,2622.2,2622.0,0.3696]
[1727143851762,3.58916,2622.3,2622.0,0.3696]
[1727143851959,3.2078,2622.3,2622.0,0.3696]
[1727143852265,0.38138,2622.2,2622.0,0.3696]
[1727143852466,5.8878,2622.3,2621.7,3.58924]
[1727143852467,0.38139,2622.1,2621.7,3.58924]
[1727143852771,0.3888,2622.0,2621.8,0.38143]
[1727143852964,0.3888,2622.0,2621.7,3.97384]
[1727143854073,0.3888,2622.0,2621.8,0.38143]
[1727143854265,0.3888,2622.0,2621.7,3.97384]
[1727143854464,0.3888,2622.0,2621.8,0.38143]
[1727143854665,0.3888,2622.0,2621.7,3.5924]
[1727143855066,0.38142,2621.9,2621.7,0.3846]
[1727143855270,3.0688,2622.0,2621.7,0.3846]
[1727143855473,0.38143,2621.8,2621.7,0.3846]
[1727143856662,0.38143,2621.8,2621.5,0.3748]
[1727143856663,0.3782,2621.9,2621.5,0.3748]
[1727143856863,0.38146,2621.6,2621.5,0.3748]
[1727143857768,0.38145,2621.7,2621.5,0.3748]
[1727143859068,2.68,2621.8,2621.5,0.3748]
[1727143859069,0.38143,2621.8,2621.5,0.3748]
[1727143859467,9.57,2622.8,2621.6,13.72093339]
[1727143859682,8.061,2622.7,2621.9,3.2078]
[1727143859885,8.061,2622.7,2622.0,0.3936]
[1727143860170,0.38136,2622.4,2622.0,0.3936]
[1727143861077,0.9533,2622.6,2622.0,0.3936]
[1727143861274,0.95333,2622.5,2621.9,3.2078]
[1727143861473,0.95333,2622.5,2621.7,0.38145]
[1727143861474,0.3814,2622.1,2621.7,0.38145]
[1727143861670,0.38138,2622.2,2621.8,3.2078]
[1727143861874,3.395,2622.3,2621.6,1.73003273]
[1727143862076,3.58915,2622.4,2621.9,0.38142]
[1727143862276,3.58914,2622.4,2621.8,3.2078]
[1727143862472,3.58914,2622.4,2621.9,0.3944]
[1727143862777,3.2078,2622.4,2622.0,0.3814]
[1727143863174,3.2078,2622.4,2622.1,0.3668]
[1727143863781,3.58914,2622.4,2622.1,0.3668]
[1727143863977,3.2078,2622.4,2622.1,0.74818]
[1727143864381,3.2078,2622.4,2622.1,0.74819]
[1727143864570,3.395,2622.6,2622.1,0.74819]
[1727143864571,4.082,2623.0,2622.3,3.2078]
[1727143864771,3.395,2623.1,2622.7,0.38129]
[1727143864977,3.395,2623.1,2622.8,0.7765]
[1727143864978,3.77625,2623.1,2622.8,0.7765]
[1727143865174,3.395,2623.1,2622.8,41.5765]
[1727143865374,3.395,2623.1,2622.8,41.95778]
[1727143865681,1.12442,2623.3,2622.8,41.95778]
[1727143866069,4.082,2623.8,2623.2,3.2078]
[1727143866268,0.3806,2623.9,2623.4,0.38118]
[1727143866473,0.3806,2623.9,2623.5,3.5898]
[1727143866674,0.3806,2623.9,2623.5,3.9843]
[1727143866877,0.76173,2623.9,2623.5,3.9843]
[1727143867075,0.3806,2623.9,2623.5,3.9843]
[1727143867584,0.3806,2623.9,2623.5,1.15768]
[1727143867968,0.3806,2623.9,2623.5,0.7765]
[1727143868174,0.38117,2623.7,2623.4,3.2078]
[1727143868572,0.7437,2624.1,2623.5,0.38118]
[1727143868778,0.38111,2624.0,2623.4,3.58899]
[1727143869868,3.5704,2624.1,2623.4,3.2078]
[1727143870082,0.38114,2623.9,2623.4,3.2078]
[1727143870280,3.5704,2624.1,2623.4,3.2078]
[1727143870472,0.38114,2623.9,2623.4,3.589]
[1727143871078,0.38118,2623.5,2623.4,3.2078]
[1727143871383,0.38118,2623.6,2623.4,3.2078]
[1727143871874,0.76588,2623.5,2623.4,3.2078]
[1727143872272,0.3847,2623.5,2623.4,3.2078]
[1727143872472,0.76589,2623.5,2623.1,0.3621]
[1727143873076,0.3812,2623.4,2623.1,0.3621]
[1727143873284,0.3847,2623.5,2623.1,0.3621]
[1727143873671,0.3812,2623.4,2623.1,0.3621]
[1727143873874,0.76589,2623.5,2623.1,0.3621]
[1727143874482,0.76589,2623.5,2623.1,0.74334]
[1727143874483,0.3847,2623.5,2623.1,0.74334]
[1727143874675,0.3706,2623.7,2623.2,3.58901]
[1727143875277,0.38118,2623.6,2623.2,3.2078]
[1727143875479,0.3812,2623.4,2623.1,0.3621]
[1727143875674,0.3706,2623.7,2623.1,0.3621]
[1727143875675,0.3653,2623.5,2623.1,0.3621]
[1727143875989,0.38121,2623.4,2623.1,0.3621]
[1727143876486,0.74649,2623.5,2623.1,0.3621]
[1727143876677,0.3812,2623.4,2623.1,0.3621]
[1727143877280,0.74649,2623.5,2623.1,0.3621]
[1727143877785,0.3812,2623.4,2623.1,0.3621]
[1727143878980,0.74649,2623.5,2623.1,0.3621]
[1727143879181,0.74649,2623.5,2623.0,1.16306]
[1727143879182,0.3653,2623.5,2622.9,3.2078]
[1727143879377,0.95308,2623.2,2622.5,0.3637]
[1727143879589,0.38132,2622.6,2622.5,0.3637]
[1727143879791,0.38132,2622.6,2622.4,0.3711]
[1727143880179,0.38129,2622.8,2622.4,0.3711]
[1727143880692,0.38128,2622.9,2622.5,3.2078]
[1727143881078,0.38128,2622.9,2622.5,3.58913]
[1727143881493,0.38129,2622.8,2622.5,3.2078]
[1727143882995,0.9534,2622.3,2621.6,0.98993274]
[1727143883292,0.9534,2622.3,2621.1,2.47733182]
[1727143883293,3.2078,2621.7,2620.6,0.765]
[1727143883487,3.2078,2621.7,2620.0,1.48639909]
[1727143883488,3.58939,2620.7,2620.5,0.3638]
[1727143883680,3.2078,2620.7,2620.5,0.3638]
[1727143883885,3.5894,2620.7,2620.5,0.3638]
[1727143884285,3.58939,2620.7,2620.1,40.8]
[1727143884487,6.6888,2620.7,2620.1,41.18167]
[1727143884688,3.2078,2620.7,2619.9,0.3817]
[1727143884983,3.2078,2620.7,2619.8,3.2078]
[1727143884984,3.2078,2620.5,2619.8,3.2078]
[1727143885297,3.2078,2620.5,2619.9,40.8]
[1727143886185,3.58943,2620.5,2619.9,40.8]
[1727143886382,3.2078,2620.5,2619.9,40.8]
[1727143886581,3.2078,2620.5,2619.9,41.18171]
[1727143886786,3.2078,2620.5,2620.0,0.38169]
[1727143887692,3.2078,2620.5,2620.1,0.38168]
[1727143888091,3.2078,2620.5,2620.2,0.38166]
[1727143888296,3.2078,2620.5,2619.9,40.8]
[1727143888592,3.2078,2620.5,2620.1,0.38168]
[1727143888792,3.2078,2620.5,2620.0,0.38169]
[1727143889188,3.2078,2620.5,2619.9,41.1817]
[1727143889393,3.2078,2620.5,2619.9,40.8]
[1727143889587,0.38166,2620.3,2619.9,40.8]
[1727143889795,0.38166,2620.3,2619.9,39.003]
[1727143889993,0.38166,2620.3,2618.8,2.63299909]
[1727143889994,3.2078,2619.0,2617.9,2.04102375]
[1727143890190,3.2078,2618.0,2617.9,2.04102375]
[1727143890496,3.2078,2618.6,2617.9,11.86102375]
[1727143890686,3.2078,2618.3,2617.9,2.04102375]
[1727143891088,3.2078,2618.3,2617.9,5.86022375]
[1727143891285,3.2078,2618.3,2617.9,2.04102375]
[1727143891504,6.5078,2618.5,2617.9,2.04102375]
[1727143891795,3.2078,2618.2,2617.9,2.04102375]
[1727143892889,3.58976,2618.2,2617.9,2.04102375]
[1727143893397,0.38197,2618.1,2617.9,2.04102375]
[1727143893597,0.38199,2618.0,2617.9,2.04102375]
[1727143893790,3.2078,2618.2,2617.9,2.04102375]
[1727143893988,3.484,2618.1,2617.9,2.04102375]
[1727143894192,6.6918,2618.2,2617.9,2.04102375]
[1727143894702,6.6928,2618.2,2617.9,2.04102375]
[1727143894996,7.07476,2618.2,2617.9,2.04102375]
[1727143895195,9.9928,2618.2,2617.9,2.04102375]
[1727143895396,13.8128,2618.2,2617.9,2.04102375]
[1727143895599,0.38199,2618.0,2617.9,2.04102375]
[1727143896194,6.5078,2618.2,2617.9,2.04102375]
[1727143897303,9.9928,2618.2,2617.9,2.04102375]
[1727143897599,6.5078,2618.2,2617.9,2.04102375]
[1727143897806,9.9938,2618.2,2617.9,2.04102375]
[1727143898202,3.2078,2618.2,2617.9,2.04102375]
[1727143898405,3.2078,2618.2,2617.9,5.86102375]
[1727143898604,3.2078,2618.2,2617.9,2.04102375]
[1727143901009,3.68199,2618.0,2617.9,1.65302375]
[1727143901313,6.786,2618.0,2617.9,1.65302375]
[1727143901810,3.58976,2618.2,2617.9,1.65302375]
[1727143902302,7.07576,2618.2,2617.9,1.65302375]
[1727143902693,3.2078,2618.2,2617.9,1.65302375]
[1727143902898,6.6938,2618.2,2617.9,1.65302375]
[1727143903301,6.6938,2618.2,2617.4,0.38207]
[1727143903302,4.25497,2618.0,2617.2,0.089]
[1727143903502,4.25497,2618.0,2616.7,0.089]
[1727143903503,3.2078,2617.3,2616.7,0.089]
[1727143903715,3.2078,2616.8,2616.4,0.38221]
[1727143904011,3.2078,2616.8,2616.2,9.39145632]
[1727143904214,3.3,2616.3,2616.1,0.699]
[1727143904414,6.9108,2616.2,2615.2,0.089]
[1727143904609,3.3,2615.8,2614.8,3.2078]
[1727143904912,3.3,2615.8,2615.2,0.38238]
[1727143905410,0.089,2616.2,2615.5,3.2078]
[1727143905613,3.2078,2616.6,2615.6,3.5703]
[1727143905911,3.2078,2616.4,2615.6,3.5703]
[1727143906112,3.2078,2616.2,2615.6,0.3625]
[1727143906409,3.2078,2616.2,2615.6,0.74483]
[1727143906613,3.2078,2616.2,2615.6,0.3625]
[1727143907406,3.2078,2616.2,2615.7,0.38232]
[1727143907807,3.2078,2616.2,2615.6,0.3625]
[1727143908518,3.2968,2616.7,2616.0,3.2078]
[1727143908826,3.2078,2616.7,2616.0,3.2078]
[1727143909005,0.089,2617.2,2616.4,0.38221]
[1727143909006,3.2968,2617.2,2616.4,0.38221]
[1727143909207,3.2078,2617.2,2616.4,0.7738]
[1727143909413,3.2078,2617.2,2616.4,1.166]
[1727143909609,3.704,2617.4,2616.4,1.166]
[1727143909610,3.2078,2616.9,2616.5,4.01030792]
[1727143909808,3.2078,2616.9,2616.4,1.166]
[1727143910215,3.2078,2616.9,2616.5,40.8]
[1727143912614,0.38219,2616.7,2616.0,3.2078]
[1727143912817,3.2078,2616.9,2616.1,0.38225]
[1727143913114,3.2078,2616.9,2616.2,41.18224]
[1727143913617,3.58995,2616.9,2616.2,40.8]
[1727143913818,3.58995,2616.9,2616.2,41.18225]
[1727143914320,3.58995,2616.9,2616.2,40.8]
[1727143914620,3.2078,2616.9,2616.3,0.38223]
[1727143914814,3.2078,2616.9,2616.3,4.85190035]
[1727143915317,3.2078,2616.9,2616.4,0.38222]
[1727143915519,3.2078,2616.9,2616.3,4.85189035]
[1727143916116,3.58995,2616.9,2616.3,4.46967035]
[1727143916413,3.2078,2616.9,2616.4,0.38221]
[1727143916620,3.2078,2616.9,2616.5,0.3822]
[1727143916923,3.2078,2616.9,2616.3,4.85190035]
[1727143917920,3.58995,2616.9,2616.3,4.46967035]
[1727143918222,0.38217,2616.8,2616.3,4.46967035]
[1727143918419,3.2078,2616.9,2616.3,8.67349035]
[1727143918620,3.2078,2616.9,2616.4,0.3741]
[1727143919008,3.2078,2616.9,2616.4,0.75632]
[1727143919212,3.58995,2616.9,2616.4,0.3741]
[1727143919620,3.2078,2616.9,2616.4,0.3741]
[1727143920014,0.38217,2616.8,2616.4,0.3741]
[1727143920325,3.58995,2616.9,2616.4,0.3741]
[1727143920618,0.38218,2616.7,2616.4,0.3741]
[1727143921314,3.2078,2616.9,2616.4,0.3741]
[1727143921721,3.2078,2616.5,2615.7,0.3957]
[1727143921926,0.38222,2616.4,2615.8,0.38231]
[1727143922218,3.2078,2616.5,2616.1,0.38226]
[1727143922419,3.2078,2616.5,2616.1,3.2078]
[1727143922612,3.58994,2617.0,2616.4,3.59002]
[1727143922812,3.58994,2617.0,2616.4,3.2078]
[1727143922813,3.2078,2617.0,2616.4,3.2078]
[1727143923012,3.58994,2617.0,2616.3,0.38223]
[1727143923320,3.2078,2616.7,2616.4,0.38221]
[1727143923821,3.2078,2616.7,2616.5,4.2082]
[1727143924215,3.2078,2617.1,2616.6,3.8216]
[1727143924413,0.089,2617.9,2617.7,0.38202]
[1727143924725,3.2078,2618.3,2617.8,3.82]
[1727143925025,3.2078,2618.3,2617.7,9.2078]
[1727143925026,0.38196,2618.2,2617.7,3.2078]
[1727143925223,3.2078,2618.3,2614.0,0.58184338]
[1727143925224,3.2078,2616.2,2614.0,0.58184338]
[1727143925424,0.3789,2618.8,2613.4,2.47733182]
[1727143925425,3.2078,2615.0,2614.6,3.2078]
[1727143925627,3.2078,2614.9,2614.8,4.26092019]
[1727143925921,0.95566,2616.2,2614.7,4.96292757]
[1727143925922,3.2078,2615.4,2614.7,4.96292757]
[1727143926111,3.72,2615.8,2614.7,4.96292757]
[1727143926112,3.2078,2615.1,2614.8,4.42005934]
[1727143926523,3.2078,2615.1,2614.9,3.824]
[1727143926721,3.2078,2615.1,2615.0,3.824]
[1727143927412,3.2078,2615.1,2614.5,40.8]
[1727143927614,3.2078,2614.8,2614.5,40.8]
[1727143928120,3.2078,2615.4,2614.7,0.38247]
[1727143928323,3.2078,2615.3,2614.6,9.42952478]
[1727143928517,3.2078,2616.0,2614.8,9.42952478]
[1727143928711,3.2078,2616.0,2615.1,3.2078]
[1727143928913,3.2078,2616.0,2615.2,0.383]
[1727143929132,3.2078,2615.7,2615.2,4.42308974]
[1727143929516,3.2078,2615.7,2615.3,3.8232]
[1727143930032,3.2078,2615.7,2615.4,8.09531552]
[1727143930318,3.2078,2615.7,2615.3,3.8232]
[1727143930522,3.2078,2615.7,2615.3,7.87016628]
[1727143930720,3.2078,2615.7,2615.4,3.8232]
[1727143931023,3.2078,2615.7,2615.4,4.04696628]
[1727143931219,3.2078,2615.7,2615.5,3.8232]
[1727143931419,3.2078,2615.7,2615.4,3.8232]
[1727143931622,3.2078,2615.7,2615.3,4.2075]
[1727143931823,3.2078,2615.7,2615.3,8.18932363]
[1727143932026,3.2078,2615.7,2615.4,3.8232]
[1727143932326,3.2078,2615.7,2615.4,7.88001131]
[1727143932525,3.2078,2615.7,2615.5,3.8232]
[1727143932925,3.2078,2615.7,2615.6,3.8232]
[1727143933124,3.2078,2615.7,2615.4,3.8232]
[1727143933427,3.2078,2615.7,2615.4,8.15975936]
[1727143933731,3.2078,2615.7,2615.5,3.8232]
[1727143933928,3.2078,2615.7,2615.4,4.20555]
[1727143934127,3.2078,2615.7,2615.5,4.12901462]
[1727143934325,3.2078,2615.7,2615.5,3.8232]
[1727143934628,3.2078,2615.7,2615.6,3.8232]
[1727143934933,3.59013,2615.7,2614.5,40.8]
[1727143935133,3.2078,2615.2,2614.6,0.47331193]
[1727143935429,0.38233,2615.7,2615.0,4.20357554]
[1727143935430,3.72,2615.7,2615.0,4.20357554]
[1727143935619,3.72,2615.7,2614.4,0.7303]
[1727143935620,3.2078,2615.1,2614.4,0.7303]
[1727143935820,3.72,2615.7,2614.4,1.11281]
[1727143935821,3.2078,2614.6,2614.4,1.11281]
[1727143936327,3.2078,2614.6,2614.5,3.8248]
[1727143936825,3.2078,2614.6,2614.5,9.8248]
[1727143937418,3.2078,2614.6,2614.5,3.8248]
[1727143937631,3.2078,2614.6,2614.4,0.7303]
[1727143937927,3.2078,2614.6,2614.4,0.3636]
[1727143938232,3.2078,2614.6,2613.9,0.365]
[1727143938429,3.72,2615.4,2613.8,0.3742]
[1727143938430,3.2078,2614.3,2613.8,0.3742]
[1727143938929,3.2078,2614.3,2613.9,0.38257]
[1727143939134,3.2078,2614.3,2613.8,4.5675569]
[1727143939542,3.2078,2614.3,2613.8,4.9501469]
[1727143939731,3.2078,2614.3,2613.8,4.1933569]
[1727143939933,8.831,2615.0,2613.7,0.38261]
[1727143939934,3.2078,2614.0,2613.7,0.38261]
[1727143940327,3.2078,2614.0,2613.6,0.38262]
[1727143940736,3.2078,2614.0,2613.4,0.7466]
[1727143941131,3.2078,2614.0,2613.5,12.90608201]
[1727143941431,0.192,2615.0,2614.0,0.38256]
[1727143941432,3.2078,2614.3,2614.0,0.38256]
[1727143941822,3.2078,2614.3,2614.0,4.20816]
[1727143942028,3.2078,2614.3,2614.0,3.8256]
[1727143942321,3.2078,2614.3,2613.4,3.9544]
[1727143942735,3.2078,2614.3,2613.8,0.38259]
[1727143942926,3.2078,2614.3,2613.9,0.38258]
[1727143943126,3.2078,2614.0,2613.9,0.38258]
[1727143943326,3.2078,2614.3,2614.1,0.38254]
[1727143943836,3.2078,2615.2,2614.8,0.38244]
[1727143944030,3.2078,2614.9,2614.8,0.38244]
[1727143944543,3.2078,2614.9,2614.8,4.20644]
[1727143945025,3.2078,2614.9,2614.8,3.824]
[1727143945435,3.2078,2614.9,2614.8,4.20645]
[1727143946638,3.2078,2615.3,2614.8,13.80777973]
[1727143946931,3.2078,2615.3,2615.0,0.38242]
[1727143947133,3.2078,2615.3,2615.0,4.20642]
[1727143947823,3.2078,2615.3,2615.0,0.38242]
[1727143948030,3.2078,2615.3,2615.0,3.824]
[1727143948232,3.2078,2615.3,2615.1,0.3824]
[1727143948935,3.2078,2615.3,2614.7,4.2278605]
[1727143949129,3.2078,2614.8,2614.7,4.2278605]
[1727143949532,3.2078,2614.8,2614.7,8.0526605]
[1727143949832,3.2078,2614.8,2614.7,4.2278605]
[1727143950034,3.2078,2614.8,2614.3,0.3622]
[1727143950223,0.95597,2615.3,2614.3,0.3622]
[1727143950224,3.2078,2614.5,2614.3,0.3622]
[1727143950423,3.2078,2614.5,2613.9,0.3993]
[1727143950631,3.2078,2614.5,2614.0,0.38256]
[1727143950839,3.2078,2614.5,2614.1,0.38255]
[1727143951025,3.2078,2614.5,2613.9,0.3993]
[1727143951439,3.2078,2614.1,2613.6,0.3734]
[1727143951635,2.63371033,2614.1,2613.9,0.38258]
[1727143951929,2.63371033,2614.1,2613.8,0.38259]
[1727143952125,2.63371033,2614.1,2613.7,4.76095865]
[1727143952126,3.2078,2614.1,2613.7,4.76095865]
[1727143952926,3.2078,2614.1,2613.7,4.37835865]
[1727143953126,3.2078,2614.1,2613.8,0.38259]
[1727143954233,3.2078,2614.1,2613.7,4.76096865]
[1727143954632,3.2078,2614.1,2613.8,0.3826]
[1727143954829,3.2078,2614.1,2613.9,0.38258]
[1727143955140,3.2078,2614.1,2613.9,0.38257]
[1727143955340,3.2078,2614.4,2614.0,4.20816]
[1727143955534,3.2078,2614.1,2613.7,4.37835865]
[1727143955743,3.2078,2614.1,2614.0,0.38257]
[1727143955942,3.2078,2614.1,2614.0,4.20817]
[1727143956632,3.2078,2614.1,2614.0,4.29717]
[1727143956833,3.3998,2615.0,2614.0,23.93276608]
[1727143957035,3.2078,2615.0,2614.7,0.38246]
[1727143957241,3.2078,2615.0,2614.8,0.38245]
[1727143957535,3.2078,2615.0,2614.9,0.38244]
[1727143957741,3.2078,2615.4,2614.9,3.824]
[1727143958041,3.2078,2615.4,2615.0,3.824]
[1727143958337,3.2078,2615.4,2615.2,0.38239]
[1727143958744,3.2078,2615.4,2615.3,3.824]
[1727143959037,3.2078,2615.4,2615.1,0.089]
[1727143959344,3.2078,2615.4,2615.1,0.4714]
[1727143959734,3.2078,2615.4,2615.1,0.089]
[1727143959934,3.2078,2615.4,2615.1,0.47141]
[1727143960140,3.2078,2615.4,2615.3,0.38238]
[1727143960534,3.2078,2615.4,2615.3,4.20558]
[1727143961437,3.2078,2615.4,2615.3,3.8232]
[1727143963949,3.2078,2615.4,2615.1,0.089]
[1727143965954,3.2078,2615.4,2615.2,0.38239]
[1727143966251,3.2078,2615.4,2615.3,0.38238]
[1727143966658,3.2078,2615.4,2615.3,3.8232]
[1727143966950,3.2078,2615.4,2615.2,0.38239]
[1727143967141,3.2078,2615.4,2615.1,0.089]
[1727143967541,0.38239,2615.3,2615.1,0.089]
[1727143967747,0.38239,2615.2,2615.1,0.089]
[1727143968242,10.20639,2615.2,2615.1,0.089]
[1727143969441,4.20639,2615.2,2615.1,0.089]
[1727143969847,4.20639,2615.2,2614.5,0.38249]
[1727143969848,0.38243,2615.0,2614.5,0.38249]
[1727143970044,3.2078,2614.6,2614.5,0.38249]
[1727143970649,3.2078,2614.6,2614.5,0.3825]
[1727143970851,3.2078,2614.9,2614.7,0.38245]
[1727143971050,3.2078,2615.2,2614.7,0.38245]
[1727143971256,3.2078,2615.2,2614.5,4.06362405]
[1727143971257,3.2078,2615.2,2614.8,0.38245]
[1727143972158,3.2078,2614.9,2614.7,0.38246]
[1727143972354,3.2078,2614.9,2614.5,4.06362405]
[1727143972659,3.2078,2614.9,2614.7,0.38245]
[1727143973045,3.2078,2614.9,2614.7,4.20645]
[1727143973852,3.2078,2614.9,2614.7,0.38245]
[1727143974048,3.2078,2614.9,2614.8,40.8]
[1727143974358,3.2078,2614.9,2614.7,0.38245]
[1727143974755,3.2078,2614.9,2614.7,41.18247]
[1727143975155,3.2078,2614.9,2614.7,40.8]
[1727143975349,3.2078,2614.9,2614.7,41.18246]
[1727143975660,3.2078,2614.9,2614.8,0.38245]
[1727143975861,3.2078,2614.9,2614.8,4.20645]
[1727143976357,3.2078,2614.9,2614.8,3.824]
[1727143976858,3.2078,2614.9,2614.7,41.18246]
[1727143977156,3.2078,2614.9,2613.8,1.49239274]
[1727143977157,0.95618,2614.7,2613.8,1.49239274]
[1727143977455,0.95618,2614.7,2613.1,2.24359274]
[1727143977456,3.2078,2613.9,2613.1,2.24359274]
[1727143977647,3.2078,2614.0,2613.2,3.31]
[1727143977851,3.2078,2614.3,2613.5,3.31]
[1727143978049,3.2078,2614.3,2613.7,0.3826]
[1727143978252,3.2078,2614.0,2613.6,4.86948315]
[1727143978451,3.2078,2614.3,2613.6,4.23617638]
[1727143978949,3.2078,2614.0,2613.6,4.23618638]
[1727143979153,3.2078,2614.0,2613.6,3.85356638]
[1727143979563,3.2078,2614.0,2613.6,3.31]
[1727143979754,3.2078,2614.0,2613.8,0.38259]
[1727143979952,3.2078,2614.3,2613.9,3.31]
[1727143980153,3.2078,2614.3,2614.1,0.38255]
[1727143980355,3.2078,2614.3,2614.0,0.75176]
[1727143980560,3.2078,2614.3,2614.0,0.3692]
[1727143980767,3.2078,2614.3,2614.0,0.75177]
[1727143981165,3.2078,2614.3,2614.0,0.3692]
[1727143981461,3.2078,2614.3,2613.4,1.49239274]
[1727143981666,3.2078,2613.9,2613.5,0.3692]
[1727143981860,3.2078,2613.9,2613.7,4.00802796]
[1727143982057,3.2078,2613.9,2613.5,0.3692]
[1727143982658,3.2078,2613.9,2613.5,0.75184]
[1727143982855,3.2078,2613.9,2613.5,0.3692]
[1727143983059,3.2078,2613.9,2613.6,40.8]
[1727143983356,0.3826,2613.8,2613.1,0.38269]
[1727143983549,3.2078,2613.5,2613.0,0.75931]
[1727143983754,3.2078,2613.5,2613.1,41.1827]
[1727143983960,3.2078,2613.5,2613.1,40.8]
[1727143984551,3.2078,2613.5,2613.1,41.1827]
[1727143984754,3.2078,2613.5,2613.1,40.8]
[1727143985455,3.2078,2613.5,2613.2,4.13495656]
[1727143985964,3.2078,2613.5,2613.2,4.51763656]
[1727143986559,3.2078,2613.8,2613.6,0.38262]
[1727143986765,3.5904,2613.8,2613.4,0.3974]
[1727143987061,3.5904,2613.8,2613.2,4.13495656]
[1727143987062,3.2078,2613.5,2613.1,40.8]
[1727143987258,3.2078,2613.2,2613.1,40.8]
[1727143987458,3.2078,2613.5,2613.1,6.0]
[1727143987660,0.192,2614.3,2613.4,3.31]
[1727143987661,3.2078,2613.8,2613.4,3.31]
[1727143987867,3.2078,2614.2,2613.5,0.3974]
[1727143988067,3.2078,2614.2,2614.0,0.38257]
[1727143988364,3.2078,2614.2,2613.9,0.38258]
[1727143988570,3.2078,2614.5,2614.4,0.3825]
[1727143988755,1.48175245,2615.3,2614.5,3.31]
[1727143988756,3.2078,2615.1,2614.5,3.31]
[1727143988955,3.2078,2615.4,2614.9,3.31]
[1727143989173,3.2078,2615.4,2615.2,3.31]
[1727143989563,3.2078,2615.4,2615.2,7.134]
[1727143989757,3.2078,2615.4,2615.0,0.3673]
[1727143989955,3.2078,2615.4,2615.3,0.38238]
[1727143990257,0.7334,2616.2,2615.2,4.28998191]
[1727143990258,3.2078,2615.6,2615.2,4.28998191]
[1727143990454,3.2078,2615.6,2615.2,3.31]
[1727143990654,3.2078,2615.6,2615.3,40.8]
[1727143991960,3.2078,2615.6,2615.4,4.409602]
[1727143992554,3.2078,2615.6,2615.5,0.38235]
[1727143993061,0.449,2616.4,2615.5,13.82285341]
[1727143993062,3.2078,2616.1,2615.5,13.82285341]
[1727143993264,3.2078,2616.1,2615.5,8.07765341]
[1727143993457,3.2078,2615.8,2615.3,40.8]
[1727143994460,3.2078,2615.8,2615.3,41.18237]
[1727143994957,3.2078,2615.8,2615.3,41.18238]
[1727143995363,3.2078,2615.5,2615.3,40.8]
[1727143995565,3.2078,2615.5,2615.4,0.38236]
[1727143995770,3.2078,2615.5,2615.4,4.77120819]
[1727143996066,3.2078,2615.5,2615.4,4.38884819]
[1727143996263,3.2078,2615.5,2615.4,4.20556]
[1727143996458,0.089,2616.6,2615.4,19.07421391]
[1727143996669,3.5905,2616.7,2616.1,0.38225]
[1727143996858,3.5905,2616.7,2616.1,4.45925]
[1727143997165,3.5905,2616.7,2616.2,40.8]
[1727143997362,3.2078,2616.7,2616.4,3.72]
[1727143997564,3.2078,2616.7,2616.3,4.077]
[1727143997959,3.2078,2616.7,2616.2,40.8]
[1727143998155,3.2078,2616.4,2616.2,40.8]
[1727143998764,7.0302,2616.4,2616.2,40.8]
[1727143998965,7.0302,2616.4,2615.3,7.797]
[1727143998966,0.38227,2616.1,2615.3,7.797]
[1727143999164,3.2078,2615.8,2615.3,3.72]
[1727143999366,3.2078,2615.8,2615.4,40.8]
[1727144000158,0.3901,2616.0,2615.7,3.72]
[1727144001064,3.2078,2616.1,2615.7,4.10232]
[1727144001869,3.2078,2616.1,2615.7,3.72]
[1727144002466,3.2078,2616.1,2615.8,8.8257907]
[1727144002667,0.3902,2616.5,2616.0,3.72]
[1727144002869,0.3902,2616.5,2616.1,0.38226]
[1727144003065,0.3902,2616.5,2616.1,4.7497507]
[1727144003566,3.2078,2616.7,2616.3,0.38223]
[1727144003763,3.2078,2616.7,2616.4,3.72]
[1727144004872,3.2078,2616.7,2616.5,40.8]
[1727144006469,0.3822,2616.5,2615.8,0.38231]
[1727144006674,3.2078,2616.3,2615.9,4.076]
[1727144006868,3.2078,2616.3,2616.0,40.8]
[1727144007259,0.38225,2616.2,2616.0,40.8]
[1727144007465,0.7463,2616.2,2616.0,40.8]
[1727144007974,1.12855,2616.2,2616.0,40.8]
[1727144008170,0.7463,2616.2,2616.0,40.8]
[1727144011669,1.12855,2616.2,2616.0,40.8]
[1727144011977,0.7463,2616.2,2616.0,40.8]
[1727144012578,3.8224,2616.1,2615.5,3.3]
[1727144012773,3.2078,2615.7,2615.5,3.3]
[1727144012973,3.2078,2615.7,2615.2,3.3]
[1727144013280,3.2078,2615.4,2615.2,3.3]
[1727144013576,3.2078,2615.4,2615.3,40.8]
[1727144014168,3.2078,2615.4,2615.3,41.18238]
[1727144014470,3.2078,2615.4,2615.3,40.8]
[1727144015175,3.2078,2615.4,2614.6,3.9849]
[1727144015176,13.031,2615.4,2613.7,1.18669369]
[1727144015366,3.3,2615.6,2613.8,3.3]
[1727144015367,3.2078,2614.4,2613.8,3.3]
[1727144015567,3.2078,2614.4,2613.6,4.39010071]
[1727144015769,0.38255,2614.2,2613.6,0.3963]
[1727144016180,3.2078,2614.1,2613.6,0.3963]
[1727144016376,3.59036,2614.1,2613.6,0.3963]
[1727144016575,3.2078,2614.1,2613.6,0.3963]
[1727144018177,0.7542,2614.3,2613.6,0.3963]
[1727144018572,0.7542,2614.3,2613.7,0.3826]